fUST/lending_fUST_20250731
["ID","MTS","AMOUNT","RATE_DAILY","PERIOD"]
[376333508,1753937433326,-829.76,0.00019452,2]
[376333509,1753937433335,-1015.43,0.00019452,2]
[376333510,1753937433345,-460.0,0.00019452,2]
[376333511,1753937433354,-460.0,0.00019452,2]
[376333512,1753937433363,-460.0,0.00019452,2]
[376333513,1753937433372,-630.32,0.00019452,2]
[376333514,1753937433382,-460.0,0.00019452,2]
[376333515,1753937433391,-460.0,0.00019452,2]
[376333516,1753937433400,-1156.76,0.00019452,2]
[376333517,1753937433409,-460.0,0.00019452,2]
[376333518,1753937433419,-741.6,0.00019452,2]
[376333519,1753937433428,-460.0,0.00019452,2]
[376333520,1753937433437,-460.0,0.00019452,2]
[376333521,1753937433446,-469.97595835,0.00019452,2]
[376333522,1753937433455,-206.15780024,0.00019452,2]
[376333523,1753937433465,-460.0,0.00019452,2]
[376333524,1753937433475,-651.89,0.00019452,2]
[376333525,1753937433485,-460.0,0.00019452,2]
[376333526,1753937433495,-1054.47,0.00019452,2]
[376333527,1753937433504,-460.0,0.00019452,2]
[376333528,1753937433514,-460.0,0.00019452,2]
[376333529,1753937433523,-460.0,0.00019452,2]
[376333530,1753937433532,-460.0,0.00019452,2]
[376333531,1753937433542,-460.0,0.00019452,2]
[376333532,1753937433551,-460.0,0.00019452,2]
[376333533,1753937433560,-1396.67,0.00019452,2]
[376333534,1753937433570,-469.41,0.00019452,2]
[376333535,1753937433579,-460.0,0.00019452,2]
[376333536,1753937433589,-460.0,0.00019452,2]
[376333537,1753937433599,-460.0,0.00019452,2]
[376333538,1753937433608,-200.0,0.00019459,15]
[376333539,1753937433618,-200.0,0.00019459,15]
[376333540,1753937433627,-200.0,0.00019459,15]
[376333541,1753937433636,-200.0,0.00019459,15]
[376333542,1753937433646,-200.0,0.00019459,15]
[376333543,1753937433655,-200.0,0.00019459,15]
[376333544,1753937433664,-200.0,0.00019459,15]
[376333545,1753937433673,-200.0,0.00019459,15]
[376333546,1753937433682,-460.0,0.00019725,2]
[376333547,1753937433691,-608.78019521,0.00019725,2]
[376333548,1753937433700,-916.84,0.00019725,2]
[376333549,1753937433709,-467.19482829,0.00019725,2]
[376333550,1753937433719,-460.0,0.00019725,2]
[376333551,1753937433729,-460.0,0.00019725,2]
[376333552,1753937433738,-1688.03,0.00019725,2]
[376333553,1753937433747,-460.0,0.00019725,2]
[376333554,1753937433756,-1060.54,0.00019725,2]
[376333555,1753937433765,-442.21667309,0.00019726,2]
[376333556,1753937433775,-460.0,0.00019726,2]
[376333557,1753937433784,-460.0,0.00019726,2]
[376333558,1753937433793,-460.0,0.00019726,2]
[376333559,1753937433803,-460.0,0.00019726,2]
[376333560,1753937433812,-460.0,0.00019726,2]
[376333561,1753937433822,-460.0,0.00019726,2]
[376333562,1753937433832,-324.18164204,0.00019726,2]
[376333563,1753937433842,-481.08,0.00019726,2]
[376333564,1753937433852,-460.0,0.00019726,2]
[376333565,1753937433861,-460.0,0.00019726,2]
[376333566,1753937433871,-460.0,0.00019726,2]
[376333567,1753937433880,-460.0,0.00019726,2]
[376333568,1753937433890,-460.0,0.00019726,2]
[376333569,1753937433910,-187.75711561,0.00019726,2]
[376333570,1753937433919,-460.0,0.00019726,2]
[376333571,1753937433929,-460.0,0.00019726,2]
[376333572,1753937433938,-460.0,0.00019726,2]
[376333573,1753937433948,-460.0,0.00019726,2]
[376333574,1753937433957,-460.0,0.00019726,2]
[376333575,1753937433967,-460.0,0.00019726,2]
[376333576,1753937433976,-3118.95,0.00019726,2]
[376333577,1753937433986,-871.45,0.00019726,2]
[376333578,1753937433995,-460.0,0.00019726,2]
[376333579,1753937434004,-460.0,0.00019726,2]
[376333580,1753937434014,-829.76,0.00019726,2]
[376333581,1753937434023,-1062.45,0.00019726,2]
[376333582,1753937434034,-1015.43,0.00019726,2]
[376333583,1753937434043,-460.0,0.00019726,2]
[376333584,1753937434052,-460.0,0.00019726,2]
[376333585,1753937434062,-630.32,0.00019726,2]
[376333586,1753937434071,-460.0,0.00019726,2]
[376333587,1753937434081,-460.0,0.00019726,2]
[376333588,1753937434090,-1156.76,0.00019726,2]
[376333589,1753937434099,-460.0,0.00019726,2]
[376333590,1753937434109,-741.6,0.00019726,2]
[376333591,1753937434121,-460.0,0.00019726,2]
[376333592,1753937434130,-460.0,0.00019726,2]
[376333593,1753937434140,-651.89,0.00019726,2]
[376333594,1753937434149,-460.0,0.00019726,2]
[376333595,1753937434159,-1054.47,0.00019726,2]
[376333596,1753937434168,-460.0,0.00019726,2]
[376333597,1753937434178,-460.0,0.00019726,2]
[376333598,1753937434187,-460.0,0.00019726,2]
[376333599,1753937434196,-460.0,0.00019726,2]
[376333600,1753937434206,-460.0,0.00019726,2]
[376333601,1753937434215,-460.0,0.00019726,2]
[376333602,1753937434225,-1396.67,0.00019726,2]
[376333603,1753937434238,-469.41,0.00019726,2]
[376333604,1753937434247,-460.0,0.00019726,2]
[376333605,1753937434256,-460.0,0.00019726,2]
[376333606,1753937434266,-460.0,0.00019726,2]
[376333607,1753937434275,-7237.59785466,0.00019744,2]
[376333608,1753937434291,-1700.47193546,0.00019744,2]
[376333609,1753937436719,2715.90455476,0.000192,2]
[376333610,1753937436747,2284.09544524,0.000192,2]
[376333622,1753937439246,-460.0,0.00019451,2]
[376333623,1753937439260,-471.15754207,0.00019725,2]
[376333624,1753937439270,-783.62020456,0.00019744,2]
[376333625,1753937439279,-1403.94299626,0.000199,2]
[376333626,1753937439288,-241.01579993,0.00019986,2]
[376333627,1753937439297,-460.0,0.00019999,2]
[376333628,1753937439307,-916.84,0.00019999,2]
[376333629,1753937439483,-1688.03,0.00019999,2]
[376333630,1753937439502,-460.0,0.00019999,2]
[376333631,1753937439511,-1060.54,0.00019999,2]
[376333632,1753937439521,-460.0,0.0002,2]
[376333633,1753937439530,-460.0,0.0002,2]
[376333634,1753937439540,-558.65116754,0.0002,2]
[376333635,1753937439549,-371.6155,0.0002,2]
[376333636,1753937439558,-460.0,0.0002,2]
[376333637,1753937439567,-593.4365379,0.0002,2]
[376333638,1753937439577,-460.0,0.0002,2]
[376333639,1753937439587,-460.0,0.0002,2]
[376333640,1753937439596,-460.0,0.0002,2]
[376333641,1753937439605,-460.0,0.0002,2]
[376333642,1753937439615,-3118.95,0.0002,2]
[376333643,1753937439625,-871.45,0.0002,2]
[376333644,1753937439634,-353.33149398,0.0002,2]
[376333645,1753937439644,-460.0,0.0002,2]
[376333646,1753937439653,-829.76,0.0002,2]
[376333647,1753937439663,-1062.45,0.0002,2]
[376333648,1753937439672,-1015.43,0.0002,2]
[376333649,1753937439682,-460.0,0.0002,2]
[376333650,1753937439691,-460.0,0.0002,2]
[376333651,1753937439702,-630.32,0.0002,2]
[376333652,1753937439712,-460.0,0.0002,2]
[376333653,1753937439721,-460.0,0.0002,2]
[376333654,1753937439730,-1156.76,0.0002,2]
[376333655,1753937439740,-460.0,0.0002,2]
[376333656,1753937439750,-741.6,0.0002,2]
[376333657,1753937439760,-460.0,0.0002,2]
[376333658,1753937439770,-460.0,0.0002,2]
[376333659,1753937439779,-651.89,0.0002,2]
[376333660,1753937439788,-460.0,0.0002,2]
[376333661,1753937439797,-1054.47,0.0002,2]
[376333662,1753937439807,-460.0,0.0002,2]
[376333663,1753937439816,-460.0,0.0002,2]
[376333664,1753937439826,-460.0,0.0002,2]
[376333665,1753937439835,-460.0,0.0002,2]
[376333666,1753937439845,-460.0,0.0002,2]
[376333667,1753937439855,-1396.67,0.0002,2]
[376333668,1753937439864,-469.41,0.0002,2]
[376333669,1753937439874,-460.0,0.0002,2]
[376333670,1753937439883,-460.0,0.0002,2]
[376333671,1753937439893,-460.0,0.0002,2]
[376333672,1753937439903,-1403.94299604,0.00020141,2]
[376333673,1753937439913,-460.0,0.00020273,2]
[376333674,1753937439923,-460.0,0.00020273,2]
[376333675,1753937439933,-460.0,0.00020273,2]
[376333676,1753937439943,-460.0,0.00020273,2]
[376333677,1753937439953,-460.0,0.00020273,2]
[376333678,1753937439962,-3118.95,0.00020273,2]
[376333679,1753937439971,-871.45,0.00020273,2]
[376333680,1753937439981,-460.0,0.00020273,2]
[376333681,1753937439990,-829.76,0.00020273,2]
[376333682,1753937439999,-1062.45,0.00020273,2]
[376333683,1753937440009,-1015.43,0.00020273,2]
[376333684,1753937440019,-460.0,0.00020273,2]
[376333685,1753937440029,-460.0,0.00020273,2]
[376333686,1753937440038,-630.32,0.00020273,2]
[376333687,1753937440048,-460.0,0.00020273,2]
[376333688,1753937440057,-460.0,0.00020273,2]
[376333689,1753937440067,-1156.76,0.00020273,2]
[376333690,1753937440076,-460.0,0.00020273,2]
[376333691,1753937440085,-741.6,0.00020273,2]
[376333692,1753937440095,-460.0,0.00020273,2]
[376333693,1753937440104,-460.0,0.00020273,2]
[376333694,1753937440114,-460.0,0.00020273,2]
[376333695,1753937440123,-651.89,0.00020273,2]
[376333696,1753937440133,-460.0,0.00020273,2]
[376333697,1753937440142,-916.84,0.00020273,2]
[376333698,1753937440151,-1054.47,0.00020273,2]
[376333699,1753937440161,-460.0,0.00020273,2]
[376333700,1753937440170,-460.0,0.00020273,2]
[376333701,1753937440178,-460.0,0.00020273,2]
[376333702,1753937440188,-373.19,0.00020273,2]
[376333703,1753937440197,-460.0,0.00020273,2]
[376333704,1753937440207,-1396.67,0.00020273,2]
[376333705,1753937440216,-469.41,0.00020273,2]
[376333706,1753937440225,-460.0,0.00020273,2]
[376333707,1753937440235,-460.0,0.00020273,2]
[376333708,1753937440244,-1688.03,0.00020273,2]
[376333709,1753937440258,-460.0,0.00020273,2]
[376333710,1753937440267,-1060.54,0.00020273,2]
[376333711,1753937440277,-466.464611,0.0002037,2]
[376333712,1753937440286,-1403.94299604,0.00020383,3]
[376333713,1753937440296,-1442.6,0.00020538,3]
[376333714,1753937440306,-721.3,0.00020538,3]
[376333715,1753937440316,-360.64,0.00020538,3]
[376333716,1753937440325,-252.1569877,0.00020547,2]
[376333717,1753937440336,-313.33134904,0.00020547,2]
[376333722,1753937443640,-146.66865096,0.00020547,2]
[376333723,1753937443649,-460.0,0.00020547,2]
[376333724,1753937443659,-460.0,0.00020547,2]
[376333725,1753937443669,-156.29134904,0.00020547,2]
[376333726,1753937443695,-2962.65865096,0.00020547,2]
[376333728,1753937443705,-871.45,0.00020547,2]
[376333730,1753937443714,-460.0,0.00020547,2]
[376333732,1753937443724,-829.76,0.00020547,2]
[376333733,1753937443734,-1062.45,0.00020547,2]
[376333734,1753937443743,-1015.43,0.00020547,2]
[376333735,1753937443752,-460.0,0.00020547,2]
[376333736,1753937443762,-460.0,0.00020547,2]
[376333737,1753937443771,-630.32,0.00020547,2]
[376333738,1753937443780,-460.0,0.00020547,2]
[376333739,1753937443789,-460.0,0.00020547,2]
[376333740,1753937443799,-1156.76,0.00020547,2]
[376333741,1753937443808,-460.0,0.00020547,2]
[376333743,1753937443817,-741.6,0.00020547,2]
[376333744,1753937443826,-460.0,0.00020547,2]
[376333745,1753937443835,-460.0,0.00020547,2]
[376333747,1753937443846,-460.0,0.00020547,2]
[376333749,1753937443855,-651.89,0.00020547,2]
[376333751,1753937443864,-460.0,0.00020547,2]
[376333753,1753937443874,-916.84,0.00020547,2]
[376333754,1753937443883,-1054.47,0.00020547,2]
[376333755,1753937443892,-460.0,0.00020547,2]
[376333756,1753937443901,-460.0,0.00020547,2]
[376333757,1753937443910,-460.0,0.00020547,2]
[376333758,1753937443920,-460.0,0.00020547,2]
[376333760,1753937443929,-1396.67,0.00020547,2]
[376333762,1753937443938,-469.41,0.00020547,2]
[376333764,1753937443947,-460.0,0.00020547,2]
[376333766,1753937443957,-474.94312146,0.00020547,2]
[376333767,1753937443966,-1688.03,0.00020547,2]
[376333768,1753937443975,-460.0,0.00020547,2]
[376333769,1753937443985,-1060.54,0.00020547,2]
[376333770,1753937443994,-1403.94299604,0.00020624,3]
[376333771,1753937444003,-805.26481132,0.00020673,2]
[376333772,1753937444013,-151.0,0.00020821,2]
[376333773,1753937444022,-261.238316,0.00020821,2]
[376333774,1753937444032,-261.238316,0.00020821,2]
[376333775,1753937444041,-460.0,0.00020821,2]
[376333776,1753937444050,-460.0,0.00020821,2]
[376333777,1753937444059,-460.0,0.00020821,2]
[376333778,1753937444069,-3118.95,0.00020821,2]
[376333779,1753937444077,-871.45,0.00020821,2]
[376333780,1753937444087,-460.0,0.00020821,2]
[376333781,1753937444096,-829.76,0.00020821,2]
[376333782,1753937444105,-1062.45,0.00020821,2]
[376333783,1753937444114,-1015.43,0.00020821,2]
[376333784,1753937444124,-460.0,0.00020821,2]
[376333785,1753937444134,-460.0,0.00020821,2]
[376333786,1753937444144,-630.32,0.00020821,2]
[376333787,1753937444153,-460.0,0.00020821,2]
[376333788,1753937444162,-460.0,0.00020821,2]
[376333789,1753937444173,-1156.76,0.00020821,2]
[376333790,1753937444184,-460.0,0.00020821,2]
[376333791,1753937444194,-741.6,0.00020821,2]
[376333792,1753937444204,-460.0,0.00020821,2]
[376333793,1753937444213,-324.39658148,0.00020821,2]
[376333794,1753937444222,-460.0,0.00020821,2]
[376333795,1753937444232,-651.89,0.00020821,2]
[376333796,1753937444240,-460.0,0.00020821,2]
[376333797,1753937444249,-916.84,0.00020821,2]
[376333798,1753937444259,-1054.47,0.00020821,2]
[376333799,1753937444272,-460.0,0.00020821,2]
[376333800,1753937444283,-460.0,0.00020821,2]
[376333801,1753937444298,-460.0,0.00020821,2]
[376333802,1753937444307,-460.0,0.00020821,2]
[376333803,1753937444316,-1396.67,0.00020821,2]
[376333804,1753937444325,-469.41,0.00020821,2]
[376333805,1753937444337,-460.0,0.00020821,2]
[376333806,1753937444346,-1688.03,0.00020821,2]
[376333807,1753937444356,-460.0,0.00020821,2]
[376333808,1753937444367,-1060.54,0.00020821,2]
[376333809,1753937444376,-151.0,0.00020822,2]
[376333810,1753937444386,-192.38826415,0.00020822,2]
[376333811,1753937444395,-151.60479721,0.00020822,2]
[376333812,1753937444405,-151.51893857,0.00020822,2]
[376333813,1753937444415,-279.82711026,0.00020822,2]
[376333814,1753937444424,-247.91184028,0.00020822,2]
[376333815,1753937444434,-151.0,0.00020822,2]
[376333816,1753937444444,-151.0,0.00020822,2]
[376333817,1753937444455,-151.0,0.00020822,2]
[376333818,1753937444464,-151.0,0.00020822,2]
[376333819,1753937444474,-500.0,0.00020822,2]
[376333820,1753937444483,-153.03511652,0.00020822,2]
[376333821,1753937444492,-172.29596715,0.00020822,2]
[376333822,1753937444501,-154.79605165,0.00020822,2]
[376333823,1753937444511,-1403.94299604,0.00020866,4]
[376333824,1753937444520,-151.0,0.00020987,2]
[376333825,1753937444529,-151.0,0.00020987,2]
[376333826,1753937444539,-151.0,0.00020987,2]
[376333827,1753937444549,-151.0,0.00020987,2]
[376333828,1753937444559,-151.0,0.00020987,2]
[376333829,1753937444569,-151.0,0.00020987,2]
[376333830,1753937444579,-151.0,0.00020987,2]
[376333831,1753937444588,-159.72607218,0.00020987,2]
[376333832,1753937444598,-1596.99,0.0002099,10]
[376333833,1753937444607,-41442.3919764,0.00021,2]
[376333840,1753937452387,-18756.25537548,0.00021,2]
[376333841,1753937452608,-160.0,0.00021006,2]
[376333842,1753937452618,-168.0,0.00021013,2]
[376333843,1753937452627,-168.0,0.00021052,2]
[376333844,1753937452637,-168.0,0.00021053,2]
[376333845,1753937452647,-460.0,0.00021095,2]
[376333846,1753937452656,-460.0,0.00021095,2]
[376333847,1753937452666,-460.0,0.00021095,2]
[376333848,1753937452675,-1246.42081611,0.00021095,2]
[376333849,1753937452976,460.0,0.00019178,2]
[376333850,1753937454463,216.944404,0.00013699,2]
[376333852,1753937461942,2232.97,0.00019178,2]
[376333853,1753937486601,682.57,0.00019178,2]
[376333854,1753937504058,390.63873874,0.000192,2]
[376333855,1753937507723,460.0,0.00019178,2]
[376333856,1753937509006,791.56,0.00019178,2]
[376333857,1753937511168,233.099427,0.00018867,2]
[376333858,1753937511576,345.91055161,0.00018868,2]
[376333859,1753937511946,172.95527581,0.00019133,2]
[376333860,1753937516337,460.0,0.00019178,2]
[376333861,1753937525626,373.54418214,0.00019178,2]
[376333862,1753937533936,766.08,0.00019178,2]
[376333863,1753937546110,129.63197546,0.00019178,2]
[376333864,1753937546141,330.36802454,0.00019178,2]
[376333865,1753937548755,460.0,0.00019178,2]
[376333866,1753937553472,838.53,0.00019178,2]
[376333867,1753937554785,460.0,0.00019178,2]
[376333868,1753937577492,150.0,0.000189,2]
[376333869,1753937584475,473.31107448,0.00019178,2]
[376333870,1753937593384,460.0,0.00019178,2]
[376333871,1753937595373,460.0,0.00019178,2]
[376333872,1753937607623,529.18,0.00019178,2]
[376333873,1753937614072,460.0,0.00019178,2]
[376333874,1753937622404,460.0,0.00019178,2]
[376333875,1753937624720,460.0,0.00019178,2]
[376333876,1753937642126,989.31,0.00019178,2]
[376333877,1753937642660,3469.30090098,0.000192,2]
[376333878,1753937642686,1530.69909902,0.000192,2]
[376333879,1753937662959,5000.0,0.000192,2]
[376333880,1753937676744,2139.92,0.00019178,2]
[376333881,1753937679218,1329.38090098,0.000192,2]
[376333882,1753937679244,3670.61909902,0.000192,2]
[376333883,1753937683692,460.0,0.00019178,2]
[376333884,1753937694834,5000.0,0.000192,2]
[376333885,1753937698315,587.74,0.00019178,2]
[376333886,1753937703147,281.64090098,0.00019178,2]
[376333887,1753937703175,372.48909902,0.00019178,2]
[376333888,1753937710492,5000.0,0.000192,2]
[376333890,1753937726919,4627.51090098,0.000192,2]
[376333891,1753937726947,372.48909902,0.000192,2]
[376333892,1753937742459,5000.0,0.000192,2]
[376333893,1753937750288,758.58,0.00019178,2]
[376333894,1753937758691,3868.93090098,0.000192,2]
[376333895,1753937758716,1131.06909902,0.000192,2]
[376333896,1753937760452,666.0,0.00019178,2]
[376333897,1753937767894,803.6,0.00019178,2]
[376333898,1753937777772,5000.0,0.000192,2]
[376333899,1753937787610,506.14,0.00019178,2]
[376333905,1753937793470,1893.19090098,0.000192,2]
[376333906,1753937793497,3106.80909902,0.000192,2]
[376333907,1753937797695,734.16,0.00019178,2]
[376333908,1753937808950,5000.0,0.000192,2]
[376333909,1753937813283,254.631913,0.00018866,2]
[376333910,1753937813835,299.86109569,0.00018867,2]
[376333911,1753937825779,604.53789229,0.000192,2]
[376333912,1753937825805,4395.46210771,0.000192,2]
[376333913,1753937842323,5000.0,0.000192,2]
[376333914,1753937857767,604.53789229,0.000192,2]
[376333915,1753937857792,492.32421119,0.000192,2]
[376333916,1753937861977,460.0,0.00019178,2]
[376333917,1753937862926,948.09,0.00019178,2]
[376333918,1753937864647,1005.43,0.00023,30]
[376333923,1753937912129,563.25,0.00019178,2]
[376333925,1753937991462,703.57,0.00019178,2]
[376333928,1753938114874,205.37984871,0.00018865,2]
[376333929,1753938134531,243.1427408,0.00018699,2]
[376333930,1753938158401,6384.2431993,0.0001855,2]
[376333931,1753938158425,10000.0,0.0001855,2]
[376333932,1753938158448,8515.7568007,0.0001855,2]
[376333933,1753938173043,1484.2431993,0.000192,2]
[376333934,1753938173067,3515.7568007,0.000192,2]
[376333935,1753938189279,5000.0,0.000192,2]
[376333936,1753938205184,1484.2431993,0.000192,2]
[376333937,1753938205212,3515.7568007,0.000192,2]
[376333938,1753938218631,924.814523,0.0001855,2]
[376333939,1753938221516,5000.0,0.000192,2]
[376333940,1753938237014,559.4286763,0.000192,2]
[376333941,1753938237053,4440.5713237,0.000192,2]
[376333942,1753938259083,5000.0,0.000192,2]
[376333943,1753938274568,559.4286763,0.000192,2]
[376333944,1753938274595,4440.5713237,0.000192,2]
[376333945,1753938290030,5000.0,0.000192,2]
[376333946,1753938305498,559.4286763,0.000192,2]
[376333947,1753938305524,4440.5713237,0.000192,2]
[376333948,1753938320988,5000.0,0.000192,2]
[376333949,1753938336511,559.4286763,0.000192,2]
[376333950,1753938336537,4440.5713237,0.000192,2]
[376333951,1753938345122,2338.09738924,0.000191,2]
[376333952,1753938352499,3221.33128706,0.000192,2]
[376333953,1753938352531,1778.66871294,0.000192,2]
[376333956,1753938369335,5000.0,0.000192,2]
[376333958,1753938376012,302.60665372,0.00019104,2]
[376333959,1753938378084,1567.6897056,0.000192,2]
[376333960,1753938387353,1351.03492774,0.000192,2]
[376333961,1753938387379,3648.96507226,0.000192,2]
[376333962,1753938402889,5000.0,0.000192,2]
[376334031,1753938416123,294.93856011,0.00018864,2]
[376334032,1753938421090,1056.09636763,0.000192,2]
[376334033,1753938421120,3943.90363237,0.000192,2]
[376334034,1753938422934,175.201497,0.00019178,2]
[376334035,1753938430762,-703.8220708,0.000192,2]
[376334036,1753938430788,-171.819234,0.00019381,2]
[376334037,1753938430812,-200.0,0.00019381,14]
[376334038,1753938430834,-328.95658145,0.00019431,2]
[376334039,1753938430857,-1200.0,0.00019447,2]
[376334040,1753938430880,-1200.0,0.00019447,2]
[376334041,1753938430902,-243.0,0.00019448,2]
[376334042,1753938430923,-161.0,0.00019448,2]
[376334043,1753938430947,-300.0,0.00019448,2]
[376334044,1753938430969,-325.57932852,0.00019451,2]
[376334045,1753938430991,-335.90930215,0.00019451,2]
[376334046,1753938431015,-460.0,0.00019451,2]
[376334047,1753938431038,-460.0,0.00019451,2]
[376334048,1753938431061,-460.0,0.00019451,2]
[376334049,1753938431086,-908.59,0.00019451,2]
[376334050,1753938431112,-539.78,0.00019451,2]
[376334051,1753938431134,-482.41721454,0.00019451,2]
[376334052,1753938431160,-674.26,0.00019451,2]
[376334053,1753938431181,-460.0,0.00019451,2]
[376334054,1753938431203,-460.80079838,0.00019723,2]
[376334055,1753938431225,-281.1019768,0.00019723,2]
[376334056,1753938431250,-696.64,0.00019723,2]
[376334057,1753938431272,-460.0,0.00019723,2]
[376334058,1753938431293,-460.0,0.00019723,2]
[376334059,1753938431318,-1266.03,0.00019723,2]
[376334060,1753938431342,-795.4,0.00019723,2]
[376334061,1753938431364,-460.0,0.00019723,2]
[376334062,1753938431388,-542.2,0.00019723,2]
[376334063,1753938431412,-460.0,0.00019724,2]
[376334064,1753938431435,-460.0,0.00019724,2]
[376334065,1753938431460,-460.0,0.00019724,2]
[376334066,1753938431484,-460.0,0.00019724,2]
[376334067,1753938431506,-282.81202987,0.00019724,2]
[376334068,1753938431531,-636.45,0.00019724,2]
[376334069,1753938431555,-752.56,0.00019724,2]
[376334070,1753938431580,-460.0,0.00019724,2]
[376334071,1753938431605,-460.0,0.00019724,2]
[376334072,1753938431628,-460.0,0.00019724,2]
[376334073,1753938431653,-460.0,0.00019724,2]
[376334074,1753938431678,-510.49,0.00019724,2]
[376334075,1753938431704,-460.0,0.00019724,2]
[376334076,1753938431728,-460.0,0.00019724,2]
[376334077,1753938431752,-460.0,0.00019724,2]
[376334078,1753938431776,-460.0,0.00019724,2]
[376334079,1753938431801,-460.0,0.00019724,2]
[376334080,1753938431824,-460.0,0.00019724,2]
[376334081,1753938431847,-460.0,0.00019724,2]
[376334082,1753938431872,-460.0,0.00019724,2]
[376334083,1753938431897,-2145.27,0.00019724,2]
[376334084,1753938431922,-759.3,0.00019724,2]
[376334085,1753938431945,-500.0,0.00019724,2]
[376334086,1753938431969,-684.37,0.00019724,2]
[376334087,1753938431994,-460.0,0.00019725,2]
[376334088,1753938432018,-460.0,0.00019725,2]
[376334089,1753938432042,-460.0,0.00019725,2]
[376334090,1753938432067,-908.59,0.00019725,2]
[376334091,1753938432091,-539.78,0.00019725,2]
[376334092,1753938432115,-674.26,0.00019725,2]
[376334093,1753938432138,-200.0,0.00019839,15]
[376334094,1753938432162,-200.0,0.00019839,15]
[376334095,1753938432186,-200.0,0.00019839,15]
[376334096,1753938432210,-200.0,0.00019839,15]
[376334097,1753938432233,-200.0,0.00019839,15]
[376334098,1753938432256,-200.0,0.00019839,15]
[376334099,1753938432281,-200.0,0.00019839,15]
[376334100,1753938432305,-200.0,0.00019839,15]
[376334101,1753938432328,-240.11416386,0.00019954,2]
[376334102,1753938432354,-696.64,0.00019997,2]
[376334103,1753938432377,-460.0,0.00019997,2]
[376334104,1753938432402,-1266.03,0.00019997,2]
[376334105,1753938432428,-795.4,0.00019997,2]
[376334106,1753938432454,-460.0,0.00019998,2]
[376334107,1753938432605,-460.0,0.00019998,2]
[376334108,1753938432631,-460.0,0.00019998,2]
[376334109,1753938432656,-372.46289426,0.00019998,2]
[376334110,1753938432682,-636.45,0.00019998,2]
[376334111,1753938432711,-752.56,0.00019998,2]
[376334112,1753938432736,-460.0,0.00019998,2]
[376334113,1753938432762,-460.0,0.00019998,2]
[376334114,1753938432788,-460.0,0.00019998,2]
[376334115,1753938432814,-460.0,0.00019998,2]
[376334116,1753938432839,-510.49,0.00019998,2]
[376334117,1753938432865,-460.0,0.00019998,2]
[376334118,1753938432888,-460.0,0.00019998,2]
[376334119,1753938432913,-460.0,0.00019998,2]
[376334120,1753938432937,-460.0,0.00019998,2]
[376334121,1753938432961,-460.0,0.00019998,2]
[376334122,1753938432986,-181.13346434,0.00019998,2]
[376334123,1753938433012,-460.0,0.00019998,2]
[376334124,1753938433038,-2145.27,0.00019998,2]
[376334125,1753938433061,-759.3,0.00019998,2]